[Event "NJSK 2023 Jeugd C"]
[Site "Almelo, Netherlands"]
[Date "2023.05.04"]
[Round "7.14"]
[White "De Wit, Evan"]
[Black "Etienne, Ghilon"]
[Result "1/2-1/2"]
[TimeControl "90min/40moves + 30min + 30sec/move"]
[WhiteElo "1563"]
[BlackElo "1673"]

1. e4 {[%clk 01:30:46]} {[%emt 00:00:13]} e5 {[%clk 01:30:53]} {[%emt
00:00:07]} 2. Nf3 {[%clk 01:31:13]} {[%emt 00:00:04]} Nc6 {[%emt 00:00:07]} 3.
Bb5 g6 {[%clk 01:31:08]} {[%emt 00:00:08]} 4. c3 {[%clk 01:31:36]} {[%emt
00:00:08]} Bg7 {[%clk 01:31:33]} {[%emt 00:00:04]} 5. O-O {[%clk 01:31:38]}
{[%emt 00:00:28]} a6 {[%clk 01:31:44]} {[%emt 00:00:20]} 6. Ba4 {[%clk
01:31:58]} {[%emt 00:00:09]} Nge7 {[%clk 01:31:59]} {[%emt 00:00:15]} 7. d4
{[%clk 01:32:09]} {[%emt 00:00:19]} O-O {[%clk 01:32:12]} {[%emt 00:00:17]} 8.
Bb3 {[%clk 01:31:17]} {[%emt 00:01:21]} d6 {[%clk 01:31:52]} {[%emt 00:00:51]}
9. h3 {[%clk 01:31:36]} {[%emt 00:00:11]} Kh8 {[%clk 01:31:24]} {[%emt
00:00:58]} 10. Be3 {[%clk 01:27:32]} {[%emt 00:04:34]} h6 {[%clk 01:27:58]}
{[%emt 00:03:56]} 11. Ne1 {[%clk 01:26:46]} {[%emt 00:01:15]} f5 {[%clk
01:27:15]} {[%emt 00:01:13]} 12. Bc2 {[%clk 01:25:50]} {[%emt 00:01:26]} f4
{[%clk 01:27:08]} {[%emt 00:00:37]} 13. d5 {[%clk 01:25:02]} {[%emt 00:01:17]}
fxe3 {[%clk 01:27:09]} {[%emt 00:00:29]} 14. dxc6 {[%clk 01:25:11]} {[%emt
00:00:21]} exf2+ {[%clk 01:27:25]} {[%emt 00:00:15]} 15. Rxf2 {[%clk 01:25:00]}
{[%emt 00:00:41]} Rxf2 {[%clk 01:27:18]} {[%emt 00:00:37]} 16. Kxf2 {[%clk
01:25:05]} {[%emt 00:00:24]} Nxc6 {[%clk 01:27:30]} {[%emt 00:00:18]} 17. Nf3
{[%clk 01:25:12]} {[%emt 00:00:23]} Qf6 {[%clk 01:27:30]} {[%emt 00:00:30]} 18.
Kg1 {[%clk 01:25:05]} {[%emt 00:00:37]} Be6 {[%clk 01:27:35]} {[%emt 00:00:26]}
19. Nbd2 {[%clk 01:25:11]} {[%emt 00:00:23]} Rf8 {[%clk 01:25:57]} {[%emt
00:02:08]} 20. Qe2 {[%clk 01:25:27]} {[%emt 00:00:13]} g5 {[%clk 01:26:06]}
{[%emt 00:00:22]} 21. Rf1 {[%clk 01:25:03]} {[%emt 00:00:54]} Qg6 {[%clk
01:25:52]} {[%emt 00:00:44]} 22. Nh2 {[%clk 01:24:39]} {[%emt 00:00:53]} h5
{[%clk 01:25:27]} {[%emt 00:00:55]} 23. g4 {[%clk 01:24:26]} {[%emt 00:00:44]}
Rxf1+ {[%clk 01:25:08]} {[%emt 00:00:50]} 24. Ndxf1 {[%clk 01:24:27]} {[%emt
00:00:28]} Qf7 {[%clk 01:18:58]} {[%emt 00:06:38]} 25. b3 {[%clk 01:23:49]}
{[%emt 00:01:10]} Ne7 {[%clk 01:18:56]} {[%emt 00:00:32]} 26. Ne3 {[%clk
01:22:28]} {[%emt 00:01:51]} h4 {[%clk 01:18:20]} {[%emt 00:01:06]} 27. Nf3
{[%clk 01:21:53]} {[%emt 00:01:04]} Bf6 {[%clk 01:17:48]} {[%emt 00:01:02]} 28.
Nf5 {[%clk 01:22:07]} {[%emt 00:00:16]} Kh7 {[%clk 01:16:44]} {[%emt 00:01:33]}
29. Qe3 {[%clk 01:22:00]} {[%emt 00:00:39]} Bxf5 {[%clk 01:12:56]} {[%emt
00:04:18]} 30. exf5 {[%clk 01:21:30]} {[%emt 00:01:00]} Qg8 {[%clk 01:12:25]}
{[%emt 00:00:58]} 31. c4 {[%clk 01:21:45]} {[%emt 00:00:18]} Nc6 {[%clk
01:12:44]} {[%emt 00:00:12]} 32. Be4 {[%emt 00:12:57]} Qd8 {[%emt 00:00:21]}
1/2-1/2

[Event "NJSK 2023 Jeugd C"]
[Site "Almelo, Netherlands"]
[Date "2023.05.04"]
[Round "7.15"]
[White "Zootjes, Aäron"]
[Black "Frederiks, Jesse"]
[Result "0-1"]
[TimeControl "90min/40moves + 30min + 30sec/move"]
[WhiteElo "1172"]
[BlackElo "1510"]

1. e4 {[%clk 01:30:59]} {[%emt 00:26:49]} e6 {[%clk 01:31:00]} 2. d4 {[%clk
01:31:19]} {[%emt 00:00:09]} d5 {[%clk 01:31:26]} {[%emt 00:00:04]} 3. exd5
{[%clk 01:31:43]} {[%emt 00:00:06]} exd5 {[%clk 01:31:52]} {[%emt 00:00:04]} 4.
Qe2+ {[%clk 01:32:01]} {[%emt 00:00:12]} Be7 {[%clk 01:30:58]} {[%emt
00:01:23]} 5. Nf3 {[%clk 01:32:10]} {[%emt 00:00:21]} Nf6 {[%clk 01:31:09]}
{[%emt 00:00:19]} 6. Nc3 {[%clk 01:31:57]} {[%emt 00:00:43]} O-O {[%clk
01:31:22]} {[%emt 00:00:16]} 7. Bg5 {[%clk 01:31:58]} {[%emt 00:00:28]} c6
{[%clk 01:30:29]} {[%emt 00:01:25]} 8. O-O-O {[%clk 01:32:04]} {[%emt
00:00:24]} a5 {[%clk 01:28:41]} {[%emt 00:02:18]} 9. Re1 {[%clk 01:32:01]}
{[%emt 00:00:33]} Be6 {[%clk 01:28:03]} {[%emt 00:01:08]} 10. h4 {[%clk
01:30:16]} {[%emt 00:02:15]} Nbd7 {[%clk 01:26:05]} {[%emt 00:02:28]} 11. Nh2
{[%clk 01:27:24]} {[%emt 00:03:22]} b5 {[%clk 01:25:20]} {[%emt 00:01:15]} 12.
g4 {[%clk 01:22:59]} {[%emt 00:04:55]} a4 {[%clk 01:23:39]} {[%emt 00:02:11]}
13. a3 {[%clk 01:19:57]} {[%emt 00:03:31]} b4 {[%clk 01:23:57]} {[%emt
00:00:12]} 14. Nb1 {[%clk 01:19:10]} {[%emt 00:01:17]} bxa3 {[%clk 01:23:59]}
{[%emt 00:00:29]} 15. Nxa3 {[%clk 01:19:23]} {[%emt 00:00:16]} Qb6 {[%clk
01:23:11]} {[%emt 00:01:18]} 16. Qd3 {[%clk 01:15:21]} {[%emt 00:04:32]} Rab8
{[%clk 01:21:26]} {[%emt 00:02:15]} 17. Qc3 {[%clk 01:13:40]} {[%emt 00:02:11]}
Bb4 {[%clk 01:21:17]} {[%emt 00:00:39]} 0-1

[Event "NJSK 2023 Jeugd C"]
[Site "Almelo, Netherlands"]
[Date "2023.05.05"]
[Round "8.1"]
[White "Arnold, Rhys"]
[Black "Krylov, Philippe"]
[Result "1-0"]
[TimeControl "90min/40moves + 30min + 30sec/move"]
[WhiteElo "2003"]
[BlackElo "1858"]

1. e4 {[%clk 01:30:58]} {[%emt 00:00:02]} c6 {[%clk 01:30:57]} {[%emt
00:00:04]} 2. Nc3 {[%clk 01:31:25]} {[%emt 00:00:02]} d5 {[%clk 01:31:24]}
{[%emt 00:00:04]} 3. Nf3 {[%clk 01:31:53]} {[%emt 00:00:03]} Nf6 {[%clk
01:31:50]} {[%emt 00:00:04]} 4. e5 {[%clk 01:32:21]} Ne4 {[%clk 01:32:12]}
{[%emt 00:00:07]} 5. Ne2 {[%clk 01:31:55]} {[%emt 00:00:55]} Qb6 {[%clk
01:32:37]} {[%emt 00:00:06]} 6. d4 {[%clk 01:32:12]} {[%emt 00:00:13]} h6
{[%clk 01:33:00]} {[%emt 00:00:06]} 7. c3 {[%clk 01:26:49]} {[%emt 00:05:53]}
e6 {[%clk 01:27:07]} {[%emt 00:06:24]} 8. Ng3 {[%clk 01:24:21]} {[%emt
00:02:59]} c5 {[%clk 01:26:05]} {[%emt 00:01:32]} 9. Bd3 {[%clk 01:15:54]}
{[%emt 00:08:56]} Nxg3 {[%clk 01:26:28]} {[%emt 00:00:07]} 10. hxg3 {[%clk
01:16:08]} {[%emt 00:00:16]} Bd7 {[%clk 01:20:28]} {[%emt 00:06:30]} 11. dxc5
{[%clk 01:11:55]} {[%emt 00:04:44]} Bxc5 {[%clk 01:20:31]} {[%emt 00:00:27]} 12.
Qe2 {[%clk 01:12:16]} {[%emt 00:00:08]} a6 {[%clk 01:13:03]} {[%emt 00:07:59]}
13. b4 {[%clk 01:00:58]} {[%emt 00:11:47]} Be7 {[%clk 01:09:36]} {[%emt
00:03:57]} 14. O-O {[%clk 00:56:17]} {[%emt 00:05:11]} Nc6 {[%clk 01:01:35]}
{[%emt 00:08:31]} 15. Bd2 {[%clk 00:47:24]} {[%emt 00:09:23]} O-O {[%clk
00:47:25]} {[%emt 00:14:39]} 16. g4 {[%clk 00:44:04]} {[%emt 00:03:51]} f6
{[%clk 00:42:33]} {[%emt 00:05:22]} 17. exf6 {[%clk 00:36:41]} {[%emt
00:07:53]} Bxf6 {[%clk 00:42:53]} {[%emt 00:00:10]} 18. g5 {[%clk 00:35:41]}
{[%emt 00:01:29]} hxg5 {[%clk 00:43:04]} {[%emt 00:00:19]} 19. Nxg5 {[%clk
00:33:57]} {[%emt 00:02:15]} Bxg5 {[%clk 00:42:47]} {[%emt 00:00:48]} 20. Bxg5
{[%clk 00:32:58]} {[%emt 00:01:29]} e5 {[%clk 00:42:21]} {[%emt 00:00:56]} 21.
Qh5 {[%clk 00:22:27]} {[%emt 00:11:01]} Bf5 {[%clk 00:34:22]} {[%emt 00:08:30]}
22. Be3 {[%clk 00:22:33]} {[%emt 00:00:24]} d4 {[%clk 00:27:45]} {[%emt
00:07:06]} 23. Bc4+ {[%clk 00:22:31]} {[%emt 00:00:32]} Rf7 {[%clk 00:27:54]}
{[%emt 00:00:21]} 24. Qxf7+ {[%clk 00:22:52]} {[%emt 00:00:09]} Kh8 {[%clk
00:28:18]} {[%emt 00:00:06]} 25. Qxf5 {[%clk 00:23:05]} {[%emt 00:00:17]} 1-0

[Event "NJSK 2023 Jeugd C"]
[Site "Almelo, Netherlands"]
[Date "2023.05.05"]
[Round "8.2"]
[White "Madularea, David"]
[Black "Kurt, Sascha"]
[Result "1/2-1/2"]
[TimeControl "90min/40moves + 30min + 30sec/move"]
[WhiteElo "1895"]
[BlackElo "1894"]

1. e4 {[%clk 01:30:57]} {[%emt 00:00:03]} c5 {[%clk 01:30:54]} {[%emt
00:00:06]} 2. Nf3 {[%clk 01:31:21]} {[%emt 00:00:06]} e6 {[%clk 01:31:15]}
{[%emt 00:00:13]} 3. d4 {[%clk 01:31:44]} {[%emt 00:00:03]} cxd4 {[%clk
01:31:41]} {[%emt 00:00:04]} 4. Nxd4 {[%clk 01:32:03]} {[%emt 00:00:10]} Nf6
{[%clk 01:32:07]} {[%emt 00:00:03]} 5. Nc3 {[%clk 01:32:27]} {[%emt 00:00:07]}
d6 {[%clk 01:32:34]} {[%emt 00:00:03]} 6. g4 {[%clk 01:32:49]} {[%emt
00:00:08]} h6 {[%clk 01:32:59]} {[%emt 00:00:06]} 7. Rg1 {[%clk 01:33:15]}
{[%emt 00:00:04]} Nc6 {[%clk 01:33:22]} {[%emt 00:00:08]} 8. Be3 {[%clk
01:33:39]} {[%emt 00:00:04]} Be7 {[%clk 01:33:10]} {[%emt 00:00:42]} 9. Be2
{[%clk 01:33:17]} {[%emt 00:00:52]} Nxd4 {[%clk 01:32:37]} {[%emt 00:01:04]} 10.
Qxd4 {[%clk 01:33:30]} {[%emt 00:00:16]} e5 {[%clk 01:32:35]} {[%emt 00:00:32]}
11. Qa4+ {[%clk 01:33:43]} {[%emt 00:00:17]} Bd7 {[%clk 01:29:37]} {[%emt
00:03:28]} 12. Bb5 {[%clk 01:34:05]} {[%emt 00:00:07]} a6 {[%clk 01:25:52]}
{[%emt 00:04:17]} 13. Bxd7+ {[%clk 01:34:30]} {[%emt 00:00:04]} Qxd7 {[%clk
01:26:09]} {[%emt 00:00:13]} 14. Qxd7+ {[%clk 01:34:54]} {[%emt 00:00:07]} Kxd7
{[%clk 01:26:35]} {[%emt 00:00:04]} 15. O-O-O {[%clk 01:35:18]} {[%emt
00:00:06]} Ke6 {[%clk 01:26:46]} {[%emt 00:00:19]} 16. f3 {[%clk 01:29:03]}
{[%emt 00:06:46]} Rad8 {[%clk 01:22:48]} {[%emt 00:04:28]} 17. Bb6 {[%clk
01:24:22]} {[%emt 00:05:11]} Rd7 {[%clk 01:20:23]} {[%emt 00:02:55]} 18. h4
{[%clk 01:18:22]} {[%emt 00:06:29]} Bd8 {[%clk 01:13:09]} {[%emt 00:07:44]} 19.
Bxd8 {[%clk 01:09:10]} {[%emt 00:09:43]} Rdxd8 {[%clk 01:13:09]} {[%emt
00:00:30]} 20. Nd5 {[%clk 01:07:36]} {[%emt 00:02:04]} Nxd5 {[%clk 01:13:22]}
{[%emt 00:00:17]} 21. Rxd5 {[%clk 01:07:57]} {[%emt 00:00:09]} g5 {[%clk
01:11:44]} {[%emt 00:02:09]} 22. h5 {[%clk 01:07:13]} {[%emt 00:01:13]} Rd7
{[%clk 01:11:29]} {[%emt 00:00:45]} 23. b3 {[%clk 01:03:56]} {[%emt 00:03:47]}
Rc8 {[%clk 01:11:11]} {[%emt 00:00:48]} 24. Kb2 {[%clk 01:04:22]} {[%emt
00:00:04]} Rc5 {[%clk 01:11:00]} {[%emt 00:00:41]} 25. Rgd1 {[%clk 01:04:34]}
{[%emt 00:00:17]} Rxd5 {[%clk 01:11:10]} {[%emt 00:00:21]} 26. Rxd5 {[%clk
01:04:53]} {[%emt 00:00:11]} Rc7 {[%clk 01:11:18]} {[%emt 00:00:22]} 27. c4
{[%clk 01:03:54]} {[%emt 00:01:29]} 1/2-1/2

[Event "NJSK 2023 Jeugd C"]
[Site "Almelo, Netherlands"]
[Date "2023.05.05"]
[Round "8.3"]
[White "Roolvink, William"]
[Black "Wink, Luka"]
[Result "0-1"]
[TimeControl "90min/40moves + 30min + 30sec/move"]
[WhiteElo "1852"]
[BlackElo "1849"]

1. e4 {[%clk 01:30:57]} {[%emt 00:00:03]} c5 {[%clk 01:30:56]} {[%emt
00:00:04]} 2. Nc3 {[%clk 01:31:26]} {[%emt 00:00:01]} g6 {[%clk 01:31:01]}
{[%emt 00:00:25]} 3. d4 {[%clk 01:31:48]} {[%emt 00:00:08]} cxd4 {[%clk
01:31:24]} {[%emt 00:00:07]} 4. Qxd4 {[%clk 01:32:11]} {[%emt 00:00:06]} Nf6
{[%clk 01:31:49]} {[%emt 00:00:05]} 5. Nf3 {[%clk 01:32:22]} {[%emt 00:00:20]}
Nc6 {[%clk 01:31:42]} {[%emt 00:00:37]} 6. Qa4 {[%clk 01:32:25]} {[%emt
00:00:27]} d6 {[%clk 01:31:43]} {[%emt 00:00:29]} 7. e5 {[%clk 01:31:38]}
{[%emt 00:01:17]} dxe5 {[%clk 01:32:08]} {[%emt 00:00:05]} 8. Nxe5 {[%clk
01:30:49]} {[%emt 00:01:19]} Bg7 {[%clk 01:31:55]} {[%emt 00:00:43]} 9. Bb5
{[%clk 01:22:36]} {[%emt 00:08:43]} O-O {[%clk 01:31:56]} {[%emt 00:00:30]} 10.
Nxc6 {[%clk 01:20:05]} {[%emt 00:03:01]} bxc6 {[%clk 01:32:21]} {[%emt
00:00:04]} 11. Bxc6 {[%clk 01:20:02]} {[%emt 00:00:32]} Rb8 {[%clk 01:32:48]}
{[%emt 00:00:05]} 12. O-O {[%clk 01:15:19]} {[%emt 00:05:10]} Qc7 {[%clk
01:32:07]} {[%emt 00:01:13]} 13. Bf4 {[%clk 00:54:51]} {[%emt 00:20:58]} e5
{[%clk 01:31:54]} {[%emt 00:00:43]} 14. Be3 {[%clk 00:48:46]} {[%emt 00:06:35]}
Rxb2 {[%clk 01:27:59]} {[%emt 00:04:25]} 15. Bc5 {[%clk 00:31:12]} {[%emt
00:18:04]} Rd8 {[%clk 01:26:42]} {[%emt 00:01:47]} 16. Rfd1 {[%clk 00:30:35]}
{[%emt 00:01:08]} Bf5 {[%clk 01:06:03]} {[%emt 00:21:08]} 17. Rxd8+ {[%clk
00:29:38]} {[%emt 00:01:27]} Qxd8 {[%clk 01:04:46]} {[%emt 00:01:48]} 18. Rd1
{[%clk 00:29:29]} {[%emt 00:00:38]} Qc7 {[%clk 01:01:47]} {[%emt 00:03:29]} 19.
Qa6 {[%clk 00:11:37]} {[%emt 00:18:23]} Rxc2 {[%clk 00:27:47]} {[%emt
00:34:30]} 20. Nb5 {[%clk 00:08:59]} {[%emt 00:03:08]} Qb8 {[%clk 00:27:08]}
{[%emt 00:01:08]} 21. Be7 {[%clk 00:00:33]} {[%emt 00:08:56]} Bd3 {[%clk
00:22:44]} {[%emt 00:04:55]} 22. h3 {[%clk 00:00:33]} {[%emt 00:00:30]} e4
{[%clk 00:22:50]} {[%emt 00:00:23]} 23. a4 {[%clk 00:00:34]} {[%emt 00:00:30]}
h5 {[%clk 00:22:21]} {[%emt 00:00:59]} 24. Bxf6 {[%clk 00:00:40]} {[%emt
00:00:24]} Bxf6 {[%clk 00:22:35]} {[%emt 00:00:16]} 25. Bxe4 {[%clk 00:00:58]}
{[%emt 00:00:12]} Qf4 {[%clk 00:22:19]} {[%emt 00:00:46]} 26. Bf3 {[%clk
00:00:34]} {[%emt 00:00:55]} Be5 {[%clk 00:20:27]} {[%emt 00:02:22]} 27. Rxd3
{[%clk 00:00:32]} {[%emt 00:00:32]} Qh2+ {[%clk 00:20:50]} {[%emt 00:00:06]} 28.
Kf1 {[%clk 00:01:01]} {[%emt 00:00:01]} Qh1# {[%clk 00:21:16]} {[%emt
00:00:04]} 0-1

[Event "NJSK 2023 Jeugd C"]
[Site "Almelo, Netherlands"]
[Date "2023.05.05"]
[Round "8.4"]
[White "Terlouw, Wouter"]
[Black "Groenewoud, Joel"]
[Result "1/2-1/2"]
[TimeControl "90min/40moves + 30min + 30sec/move"]
[WhiteElo "1923"]
[BlackElo "1990"]

1. d4 {[%clk 01:30:58]} Nf6 {[%clk 01:30:56]} {[%emt 00:00:05]} 2. Bg5 {[%clk
01:31:24]} {[%emt 00:00:04]} g6 {[%clk 01:31:21]} {[%emt 00:00:05]} 3. Bxf6
{[%clk 01:31:51]} {[%emt 00:00:04]} exf6 {[%clk 01:31:45]} {[%emt 00:00:09]} 4.
e3 {[%clk 01:32:15]} {[%emt 00:00:03]} Bg7 {[%clk 01:32:10]} {[%emt 00:00:05]}
5. g3 {[%clk 01:32:37]} {[%emt 00:00:07]} O-O {[%clk 01:32:15]} {[%emt
00:00:25]} 6. Bg2 {[%clk 01:33:03]} {[%emt 00:00:04]} d6 {[%clk 01:32:09]}
{[%emt 00:00:36]} 7. Ne2 {[%clk 01:33:28]} {[%emt 00:00:05]} f5 {[%clk
01:32:21]} {[%emt 00:00:18]} 8. O-O {[%clk 01:33:48]} {[%emt 00:00:09]} Nd7
{[%clk 01:32:31]} {[%emt 00:00:20]} 9. c4 {[%clk 01:34:12]} {[%emt 00:00:06]}
Nf6 {[%clk 01:32:51]} {[%emt 00:00:10]} 10. Nbc3 {[%clk 01:34:37]} {[%emt
00:00:05]} Re8 {[%clk 01:32:59]} {[%emt 00:00:22]} 11. Qd3 {[%clk 01:34:54]}
{[%emt 00:00:13]} c6 {[%clk 01:32:59]} {[%emt 00:00:30]} 12. b4 {[%clk
01:35:11]} {[%emt 00:00:12]} d5 {[%clk 01:28:01]} {[%emt 00:05:30]} 13. cxd5
{[%clk 01:33:05]} {[%emt 00:02:36]} cxd5 {[%clk 01:27:53]} {[%emt 00:00:38]} 14.
Nf4 {[%clk 01:31:26]} {[%emt 00:02:08]} Be6 {[%clk 01:27:38]} {[%emt 00:00:45]}
15. Rfc1 {[%clk 01:30:21]} {[%emt 00:01:35]} Rc8 {[%clk 01:24:57]} {[%emt
00:03:11]} 16. Nb5 {[%clk 01:26:27]} {[%emt 00:04:24]} Qb6 {[%clk 01:22:52]}
{[%emt 00:02:35]} 17. Nc3 {[%clk 01:18:06]} {[%emt 00:08:51]} Red8 {[%clk
01:17:55]} {[%emt 00:05:28]} 18. Na4 {[%clk 01:16:43]} {[%emt 00:01:53]} Qd6
{[%clk 01:15:00]} {[%emt 00:03:24]} 19. Nc5 {[%clk 01:16:03]} {[%emt 00:01:08]}
Qe7 {[%clk 01:12:14]} {[%emt 00:03:18]} 20. Qb3 {[%clk 01:11:27]} {[%emt
00:05:06]} Ne4 {[%clk 01:04:58]} {[%emt 00:07:46]} 21. Rc2 {[%clk 01:05:48]}
{[%emt 00:06:09]} b6 {[%clk 01:00:27]} {[%emt 00:05:01]} 22. Nfxe6 {[%clk
01:04:09]} {[%emt 00:02:09]} fxe6 {[%clk 00:57:11]} {[%emt 00:03:47]} 23. Nxe4
{[%clk 01:04:31]} {[%emt 00:00:07]} fxe4 {[%clk 00:52:27]} {[%emt 00:05:14]} 24.
Rac1 {[%clk 01:03:20]} {[%emt 00:01:40]} Rxc2 {[%clk 00:49:34]} {[%emt
00:03:23]} 25. Rxc2 {[%clk 01:02:40]} {[%emt 00:01:10]} Kf8 {[%clk 00:47:12]}
{[%emt 00:02:53]} 26. Rc6 {[%clk 00:53:38]} {[%emt 00:09:31]} e5 {[%clk
00:44:49]} {[%emt 00:02:54]} 27. dxe5 {[%clk 00:53:22]} {[%emt 00:00:46]} Bxe5
{[%clk 00:44:36]} {[%emt 00:00:43]} 28. a3 {[%clk 00:44:07]} {[%emt 00:09:45]}
Qd7 {[%clk 00:39:19]} {[%emt 00:05:47]} 29. Qc2 {[%clk 00:43:16]} {[%emt
00:01:17]} Rb8 {[%clk 00:38:21]} {[%emt 00:01:32]} 30. b5 {[%clk 00:41:36]}
{[%emt 00:02:10]} Kf7 {[%clk 00:35:50]} {[%emt 00:03:01]} 31. a4 {[%clk
00:30:04]} {[%emt 00:12:02]} Kg7 {[%clk 00:31:46]} {[%emt 00:04:34]} 32. Qc1
{[%clk 00:25:57]} {[%emt 00:04:36]} Kf7 {[%clk 00:30:23]} {[%emt 00:01:53]} 33.
Qc2 {[%clk 00:26:10]} {[%emt 00:00:17]} Kg7 {[%clk 00:30:45]} {[%emt 00:00:08]}
34. Qc1 {[%clk 00:25:31]} {[%emt 00:01:09]} Kf7 {[%clk 00:31:09]} {[%emt
00:00:07]} 35. Qc2 {[%clk 00:25:55]} {[%emt 00:00:06]} 1/2-1/2